bitfinex/quotes_ETHUSD_20251127
["timestamp","ask_amount","ask_price","bid_price","bid_amount"]
[1764238313234,1.44734656,3029.5,3029.4,0.001]
[1764238313529,4.74822129,3029.5,3029.4,0.001]
[1764238316902,4.75022129,3029.5,3029.4,0.001]
[1764238324440,1.01769951,3029.5,3029.4,0.001]
[1764238324821,0.30859371,3029.5,3029.4,0.001]
[1764238325136,1.01769951,3029.5,3029.4,0.001]
[1764238325635,4.31857424,3029.5,3029.4,0.001]
[1764238327442,1.01689951,3029.5,3029.4,0.001]
[1764238327632,4.31777424,3029.5,3029.4,0.001]
[1764238328642,1.01689951,3029.5,3029.4,0.001]
[1764238329540,4.31777424,3029.5,3029.4,0.001]
[1764238330316,1.01689951,3029.5,3029.4,0.001]
[1764238331635,4.31777424,3029.5,3029.4,0.001]
[1764238331846,1.01689951,3029.5,3029.4,0.001]
[1764238334549,4.31777424,3029.5,3029.4,0.001]
[1764238334751,1.01689951,3029.5,3029.4,0.001]
[1764238340854,1.0177184,3029.5,3029.4,0.001]
[1764238344525,1.9511184,3029.5,3029.4,0.001]
[1764238345062,1.0177184,3029.5,3029.4,0.001]
[1764238351070,1.0169184,3029.5,3029.4,0.001]
[1764238354936,1.4873184,3029.5,3029.4,0.001]
[1764238355537,1.9503184,3029.5,3029.4,0.001]
[1764238359570,1.0169184,3029.5,3029.4,0.001]
[1764238361837,0.002,3029.5,3029.4,4.07736702]
[1764238362143,0.002,3029.5,3029.4,5.4970889]
[1764238363854,0.002,3029.5,3029.4,8.79807259]
[1764238370868,0.002,3029.5,3029.4,5.85280368]
[1764238374853,0.0012,3029.5,3029.4,5.85280368]
[1764238375054,0.0012,3029.5,3029.4,9.66280368]
[1764238379170,0.0012,3029.5,3029.4,12.60807259]
[1764238380580,0.0012,3029.5,3029.4,12.40919209]
[1764238384273,0.0012,3029.5,3029.4,8.59919209]
[1764238385584,0.0012,3029.5,3029.4,8.80719209]
[1764238389477,0.0012,3029.5,3029.4,12.61719209]
[1764238392798,0.0012,3029.5,3029.4,8.80719209]
[1764238394485,0.0012,3029.5,3029.4,12.61719209]
[1764238398810,0.0004,3029.5,3029.4,12.61719209]
[1764238399398,0.0004,3029.5,3029.4,8.80719209]
[1764238401283,0.0004,3029.5,3029.4,11.5535805]
[1764238401481,0.0004,3029.5,3029.4,13.922807]
[1764238402280,0.0004,3029.5,3029.4,11.5535805]
[1764238404609,0.0004,3029.5,3029.4,15.3635805]
[1764238406584,0.0004,3029.5,3029.4,31.38052417]
[1764238407203,0.0004,3029.5,3029.4,29.01129767]
[1764238407511,0.0004,3029.5,3029.4,31.96265217]
[1764238408208,0.0004,3029.5,3029.4,29.59342567]
[1764238408507,0.0004,3029.5,3029.4,18.09420117]
[1764238408713,0.0004,3029.5,3029.4,28.81506817]
[1764238408917,0.0004,3029.5,3029.4,27.18827617]
[1764238409582,0.0004,3029.5,3029.4,28.61736517]
[1764238410096,0.0004,3029.5,3029.4,27.62736517]
[1764238411888,0.0004,3029.5,3029.4,28.62753717]
[1764238413010,0.0004,3029.5,3029.4,28.48727617]
[1764238413611,0.0004,3029.5,3029.4,26.80627617]
[1764238414009,0.0004,3029.5,3029.4,18.09420117]
[1764238414214,0.0004,3029.5,3029.4,26.15413]
[1764238414413,0.0004,3029.5,3029.4,20.04639]
[1764238414897,0.0004,3029.5,3029.4,13.50413059]
[1764238415097,0.0004,3029.5,3029.4,11.13490409]
[1764238415511,0.0004,3029.5,3029.4,13.8812925]
[1764238416118,0.0004,3029.5,3029.4,25.5687195]
[1764238417099,0.0004,3029.5,3029.4,25.9231785]
[1764238418015,0.0004,3029.5,3029.4,28.292405]
[1764238418241,0.0004,3029.5,3029.4,29.055515]
[1764238419027,0.0004,3029.5,3029.4,29.021035]
[1764238419738,0.0004,3029.5,3029.4,28.184038]
[1764238420027,0.0004,3029.5,3029.4,31.994038]
[1764238420402,0.0004,3029.5,3029.4,29.2815495]
[1764238421423,0.0004,3029.5,3029.4,30.6342585]
[1764238422127,0.0004,3029.5,3029.4,29.8139795]
[1764238422634,0.4554,3029.9,3029.5,1.13109811]
[1764238422799,0.4554,3029.9,3029.8,3.87748652]
[1764238423001,0.4554,3029.9,3029.8,5.14909811]
[1764238423200,0.9333,3029.9,3029.8,8.35088652]
[1764238423511,0.9333,3029.9,3029.8,11.65143441]
[1764238425027,0.9333,3029.9,3029.8,11.44343441]
[1764238425199,0.9333,3029.9,3029.8,13.6201269]
[1764238426220,0.9333,3029.9,3029.8,13.4121269]
[1764238426425,0.9333,3029.9,3029.8,13.6201269]
[1764238427230,0.9333,3029.9,3029.8,9.8101269]
[1764238429927,0.9333,3029.9,3029.8,7.84143441]
[1764238431633,0.0016,3029.9,3029.8,7.84143441]
[1764238432234,0.0016,3029.9,3029.8,7.63343441]
[1764238432435,0.0016,3029.9,3029.8,7.84143441]
[1764238436317,0.0016,3029.9,3029.8,35.50190328]
[1764238436540,0.0016,3029.9,3029.8,31.0071257]
[1764238436718,0.0016,3029.9,3029.8,28.26073729]
[1764238437239,0.0016,3029.9,3029.8,30.63622809]
[1764238438228,0.0016,3029.9,3029.8,33.3826165]
[1764238439738,1e-08,3030.2,3029.9,1.13109811]
[1764238439943,1e-08,3030.2,3030.1,6.62387493]
[1764238440323,1e-08,3030.2,3030.1,6.75597554]
[1764238440545,1e-08,3030.2,3030.1,4.20366164]
[1764238441527,1e-08,3030.2,3030.1,7.50388275]
[1764238441934,1e-08,3030.2,3030.1,20.83603447]
[1764238442248,1e-08,3030.2,3030.1,23.4541713]
[1764238442544,1e-08,3030.2,3030.1,21.4928943]
[1764238442948,1e-08,3030.2,3030.1,22.5055773]
[1764238444018,1e-08,3030.2,3030.1,27.6941863]
[1764238444340,1e-08,3030.2,3030.1,30.5044073]
[1764238445052,1e-08,3030.2,3030.1,26.3776793]
[1764238446122,0.00120001,3030.3,3030.1,38.85023541]
[1764238446342,0.00120001,3030.3,3030.2,21.54115286]
[1764238446543,0.00120001,3030.3,3030.2,18.55678886]
[1764238447024,0.00120001,3030.3,3030.2,2.44758786]
[1764238447323,0.00120001,3030.3,3030.2,16.54115286]
[1764238447939,0.00120001,3030.3,3030.2,9.10241886]
[1764238448141,0.00120001,3030.3,3030.2,12.85638906]
[1764238448453,0.93290001,3030.3,3030.2,5.99350006]
[1764238448642,0.93290001,3030.3,3030.2,4.47950631]
[1764238448845,0.93290001,3030.3,3030.2,4.68750631]
[1764238449046,0.93290001,3030.3,3030.2,5.09301031]
[1764238449442,0.93290001,3030.3,3030.2,4.68750631]
[1764238449826,0.93290001,3030.3,3030.2,5.09301031]
[1764238457357,0.00120001,3030.3,3030.2,6.55651202]
[1764238457556,0.97390001,3030.3,3030.2,6.55651202]
[1764238462128,0.47840001,3030.3,3030.2,6.55651202]
[1764238462333,0.00120001,3030.3,3030.2,6.55651202]
[1764238462944,0.1953,3030.9,3030.2,6.55651202]
[1764238462945,0.002,3030.9,3030.8,4.07156103]
[1764238463255,0.6875,3030.9,3030.8,4.68671713]
[1764238463439,1.1647,3030.9,3030.8,4.68671713]
[1764238463758,1.1647,3030.9,3030.8,7.98617601]
[1764238463948,1.1647,3030.9,3030.8,8.17407601]
[1764238465162,1.1647,3030.9,3030.8,5.23361309]
[1764238470058,1.1639,3030.9,3030.8,5.23361309]
[1764238470639,1.1639,3030.9,3030.8,5.02561309]
[1764238470838,1.1639,3030.9,3030.8,5.23361309]
[1764238477850,0.0012,3030.9,3030.8,5.23361309]
[1764238478460,0.9739,3030.9,3030.8,5.23361309]
[1764238482348,0.0012,3030.9,3030.8,5.23361309]
[1764238483282,0.9723,3030.9,3030.8,5.23361309]
[1764238484150,0.9723,3030.9,3030.8,5.02561309]
[1764238484351,0.9723,3030.9,3030.8,5.23361309]
[1764238486059,0.9723,3030.9,3030.8,4.82645699]
[1764238486984,0.9723,3030.9,3030.8,4.82745699]
[1764238489283,0.0012,3030.9,3030.8,4.82745699]
[1764238489456,0.4778,3030.9,3030.8,4.82745699]
[1764238489785,0.9723,3030.9,3030.8,4.82745699]
[1764238490984,0.9723,3030.9,3030.8,4.61945699]
[1764238491160,0.9723,3030.9,3030.8,4.82745699]
[1764238491558,0.9723,3030.9,3030.8,4.61945699]
[1764238491759,0.9723,3030.9,3030.8,4.21395299]
[1764238493659,0.9715,3030.9,3030.8,4.21395299]
[1764238502871,0.9715,3030.9,3030.8,6.95857308]
[1764238506389,0.477,3030.9,3030.8,6.95857308]
[1764238506590,0.9715,3030.9,3030.8,6.95857308]
[1764238511686,0.0004,3030.9,3030.8,6.95857308]
[1764238511903,0.0004,3030.9,3030.8,8.3851866]
[1764238512610,0.9519,3030.9,3030.8,8.3851866]
[1764238512910,0.9519,3030.9,3030.8,6.95857308]
[1764238513383,0.9519,3030.9,3030.8,4.21395299]
[1764238517407,0.9511,3030.9,3030.8,4.21395299]
[1764238521988,0.9531,3030.9,3030.8,4.21395299]
[1764238522190,0.002,3030.9,3030.8,4.61945699]
[1764238522405,0.002,3030.9,3030.8,6.08662091]
[1764238523408,0.002,3030.9,3030.8,9.88662091]
[1764238527117,0.002,3030.9,3030.8,12.631241]
[1764238532990,0.002,3030.9,3030.8,10.09462091]
[1764238533419,0.002,3030.9,3030.8,6.29462091]
[1764238533822,0.002,3030.9,3030.8,9.039241]
[1764238538698,0.002,3030.9,3030.8,12.839241]
[1764238539298,0.002,3030.9,3030.8,27.871848]
[1764238540325,0.002,3030.9,3030.8,28.036577]
[1764238540628,0.002,3030.9,3030.8,25.247205]
[1764238541195,0.0012,3030.9,3030.8,25.247205]
[1764238541398,0.0012,3030.9,3030.8,25.274664]
[1764238542501,0.0012,3030.9,3030.8,25.258627]
[1764238543325,0.9268,3030.9,3030.8,22.30600691]
[1764238543625,0.9268,3030.9,3030.8,20.763716]
[1764238544804,0.9268,3030.9,3030.8,12.839241]
[1764238545304,0.0012,3030.9,3030.8,15.58386109]
[1764238548149,0.43809136,3031.1,3030.9,1.13109811]
[1764238548447,0.002,3031.3,3031.1,1.13109811]
[1764238548849,0.4709,3031.2,3031.1,1.13109811]
[1764238549750,0.4709,3031.2,3031.1,1.60199811]
[1764238550152,0.9256,3031.2,3031.1,8.70113043]
[1764238550738,0.9256,3031.2,3031.1,8.90913043]
[1764238550940,0.9256,3031.2,3031.1,6.88968481]
[1764238554952,0.002,3031.3,3031.1,6.88968481]
[1764238555168,0.4567,3031.3,3031.2,3.8757182]
[1764238555660,0.9276,3031.3,3031.2,4.3324182]
[1764238557354,0.4729,3031.3,3031.2,7.63144168]
[1764238557556,0.9276,3031.3,3031.2,7.63144168]
[1764238558730,0.9276,3031.3,3031.2,11.43144168]
[1764238559531,0.9276,3031.3,3031.2,11.63944168]
[1764238561065,0.9276,3031.3,3031.2,8.48931759]
[1764238562066,0.9276,3031.3,3031.2,4.68931759]
[1764238562930,0.9276,3031.3,3031.2,4.48131759]
[1764238564946,0.9268,3031.3,3031.2,7.4210815]
[1764238565142,0.9268,3031.3,3031.2,7.8265855]
[1764238567968,0.9268,3031.3,3031.2,11.6265855]
[1764238569566,0.4721,3031.3,3031.2,11.6265855]
[1764238569770,0.9612,3031.3,3031.2,13.64803587]
[1764238569966,0.9612,3031.3,3031.2,11.6265855]
[1764238570670,0.9411,3031.3,3031.2,7.8265855]
[1764238571342,0.4814,3031.3,3031.2,7.8265855]
[1764238571767,0.9411,3031.3,3031.2,7.8265855]
[1764238575173,0.4597,3031.2,3030.8,0.001]
[1764238575374,0.4655,3030.9,3030.8,0.001]
[1764238575670,0.4655,3030.9,3030.8,3.30045888]
[1764238575891,0.9252,3030.9,3030.8,3.30045888]
[1764238576955,0.9252,3030.9,3030.8,0.001]
[1764238584756,1.34763668,3030.9,3030.8,0.001]
[1764238584982,0.9252,3030.9,3030.8,0.001]
[1764238587883,0.9252,3030.9,3030.8,3.30045888]
[1764238588788,0.9244,3030.9,3030.8,3.30045888]
[1764238590503,0.9244,3030.9,3030.8,0.001]
[1764238590788,0.9244,3030.9,3030.8,0.9254]
[1764238592899,0.9244,3030.9,3030.8,4.22485888]
[1764238594858,0.002,3031.0,3030.8,7.52431776]
[1764238595171,0.002,3031.0,3030.8,8.27730537]
[1764238595558,0.002,3031.0,3030.9,0.4597]
[1764238595779,0.002,3031.0,3030.9,4.665204]
[1764238596090,0.002,3031.0,3030.9,4.880104]
[1764238596662,0.002,3031.0,3030.9,8.17945402]
[1764238596859,0.002,3031.0,3030.9,10.3057263]
[1764238600669,0.002,3031.0,3030.9,10.0908263]
[1764238600997,0.9523,3031.0,3030.9,10.0908263]
[1764238601370,0.4715,3031.0,3030.9,10.0908263]
[1764238602093,0.4715,3031.0,3030.9,6.2908263]
[1764238602309,0.002,3031.0,3030.9,6.2908263]
[1764238604799,0.44742884,3031.2,3031.0,0.405504]
[1764238605181,0.4695,3031.1,3031.0,0.405504]
[1764238605766,0.4695,3031.1,3031.0,0.875004]
[1764238606797,0.4695,3031.1,3031.0,4.17424517]
[1764238609298,0.9503,3031.1,3031.0,4.17424517]
[1764238611002,0.4695,3031.1,3031.0,4.17424517]
[1764238612609,0.4687,3031.1,3031.0,7.97424517]
[1764238616007,0.482,3031.3,3031.0,14.21325025]
[1764238616180,0.0012,3031.3,3031.2,0.797604]
[1764238616609,0.0012,3031.3,3031.2,1.17877713]
[1764238617221,0.0012,3031.3,3031.2,4.84413515]
[1764238617709,0.4707,3031.3,3031.2,4.41093515]
[1764238618005,0.4707,3031.3,3031.2,4.56219472]
[1764238618006,0.9515,3031.3,3031.2,4.56219472]
[1764238618185,0.9515,3031.3,3031.2,4.77019472]
[1764238618818,0.9515,3031.3,3031.2,4.63812159]
[1764238619610,0.9515,3031.3,3031.2,4.43012159]
[1764238619790,0.9515,3031.3,3031.2,4.63812159]
[1764238619985,0.9515,3031.3,3031.2,0.72559411]
[1764238620191,0.9515,3031.3,3031.0,3.29924117]
[1764238620500,0.9515,3031.3,3031.0,4.02483528]
[1764238620501,0.4695,3031.1,3031.0,4.02483528]
[1764238620806,0.4695,3031.1,3031.0,3.29924117]
[1764238620984,0.4695,3031.1,3030.9,3.801]
[1764238620985,0.9503,3031.1,3030.9,3.801]
[1764238621190,0.9503,3031.1,3030.9,0.001]
[1764238621191,0.4695,3031.0,3030.9,0.001]
[1764238621386,0.9503,3031.0,3030.9,0.001]
[1764238621796,0.9503,3031.0,3030.9,3.30035002]
[1764238622003,0.9503,3031.0,3030.9,0.001]
[1764238636196,0.9495,3031.0,3030.9,0.001]
[1764238649326,1.25641336,3031.0,3030.9,0.001]
[1764238654055,1.46441336,3031.0,3030.9,0.001]
[1764238654351,1.94097297,3031.0,3030.9,0.001]
[1764238656650,1.94098636,3031.0,3030.9,0.001]
[1764238658654,1.94298636,3031.0,3030.9,0.001]
[1764238660059,1.94218636,3031.0,3030.9,0.001]
[1764238661530,1.1587,3031.0,3030.9,0.001]
[1764238661923,1.46551468,3031.0,3030.9,0.001]
[1764238665155,1.1587,3031.0,3030.9,0.001]
[1764238665360,1.46548709,3031.0,3030.9,0.001]
[1764238665665,1.1587,3031.0,3030.9,0.001]
[1764238665831,1.46547822,3031.0,3030.9,0.001]
[1764238666261,1.1587,3031.0,3030.9,0.001]
[1764238666665,1.46548111,3031.0,3030.9,0.001]
[1764238667155,1.1587,3031.0,3030.9,0.001]
[1764238667358,1.46550884,3031.0,3030.9,0.001]
[1764238672866,4.76475001,3031.0,3030.9,0.001]
[1764238673056,5.57132881,3031.0,3030.9,0.001]
[1764238678477,2.27208764,3031.0,3030.9,0.001]
[1764238679978,1.79128764,3031.0,3030.9,0.001]
[1764238680182,0.98470884,3031.0,3030.9,0.001]
[1764238680386,0.30880884,3031.0,3030.9,0.2517]
[1764238680583,0.002,3031.0,3030.9,0.5024]
[1764238680884,0.002,3031.0,3030.9,0.81120884]
[1764238681198,0.002,3031.0,3030.9,0.56050884]
[1764238681359,0.002,3031.0,3030.9,0.91629878]
[1764238681556,0.002,3031.0,3030.9,1.16699878]
[1764238682085,0.002,3031.0,3030.9,4.4663488]
[1764238683983,0.0012,3031.0,3030.9,4.4663488]
[1764238686574,0.0012,3031.0,3030.9,7.40624377]
[1764238687355,0.0012,3031.0,3030.9,8.13183788]
[1764238689783,0.0012,3031.0,3030.9,11.93183788]
[1764238691772,0.0012,3031.0,3030.9,12.33734188]
[1764238697668,0.0012,3031.0,3030.9,12.54534188]
[1764238703779,0.002,3031.1,3031.0,1.13109811]
[1764238703975,0.002,3031.1,3031.0,3.66012217]
[1764238704177,0.002,3031.1,3031.0,6.95936334]
[1764238704392,0.002,3031.1,3031.0,7.09142862]
[1764238704969,0.002,3031.1,3031.0,10.89142862]
[1764238706285,0.0012,3031.3,3031.2,1.13109811]
[1764238706471,0.0012,3031.3,3031.2,32.39577296]
[1764238706672,0.0012,3031.3,3031.2,32.64647296]
[1764238706903,0.0012,3031.3,3031.2,32.77852996]
[1764238707083,0.0012,3031.3,3031.2,36.57852996]
[1764238707269,0.002,3031.4,3031.2,36.57852996]
[1764238707270,0.002,3031.5,3031.4,1.13109811]
[1764238707476,0.0012,3031.7,3031.4,37.24178268]
[1764238707787,0.0012,3031.7,3031.6,33.63188308]
[1764238708294,0.0012,3031.7,3031.6,33.88258308]
[1764238708495,0.0012,3031.7,3031.6,37.18117128]
[1764238708788,0.0012,3031.7,3031.6,7.87098128]
[1764238708988,0.0012,3031.7,3031.6,24.21022322]
[1764238709203,0.0012,3031.7,3031.6,23.90176422]
[1764238709978,0.0012,3031.7,3031.6,30.10692622]
[1764238711802,0.0012,3031.7,3031.6,29.10692622]
[1764238712310,0.0012,3031.7,3031.6,32.90692622]
[1764238713110,0.0012,3031.7,3031.6,31.73611322]
[1764238713408,0.0012,3031.7,3031.6,31.89942745]
[1764238713985,0.0012,3031.7,3031.6,41.67414445]
[1764238714308,1e-08,3031.9,3031.8,21.49919111]
[1764238714507,1e-08,3031.9,3031.8,23.73481517]
[1764238714707,1e-08,3031.9,3031.8,23.98551517]
[1764238715013,1e-08,3031.9,3031.8,27.41591705]
[1764238716108,1e-08,3031.9,3031.8,22.60004905]
[1764238716682,1e-08,3031.9,3031.8,19.49534905]
[1764238719919,1e-08,3031.9,3031.8,19.74604905]
[1764238720905,0.48060001,3031.9,3031.8,6.39162005]
[1764238721203,1e-08,3031.9,3031.8,7.80529096]
[1764238721406,1e-08,3031.9,3031.8,16.76997896]
[1764238721607,1e-08,3031.9,3031.8,16.51927896]
[1764238724206,1e-08,3031.9,3031.8,16.52027896]
[1764238730630,1e-08,3032.4,3032.3,28.364982]
[1764238730939,1e-08,3032.4,3032.3,10.94361208]
[1764238731105,1e-08,3032.4,3032.3,8.27671308]
[1764238731426,0.00120001,3032.6,3032.5,8.765827]
[1764238731605,0.00120001,3032.6,3032.5,10.47056808]
[1764238731998,0.00120001,3032.6,3032.5,11.15106808]
[1764238732393,0.00120001,3032.6,3032.5,31.56426708]
[1764238732612,0.1915,3033.5,3032.5,31.56426708]
[1764238732613,1e-08,3033.0,3032.9,0.2507]
[1764238732822,1e-08,3033.0,3032.9,4.12418908]
[1764238733194,1e-08,3033.0,3032.9,4.61118908]
[1764238734630,1e-08,3033.0,3032.9,7.9083634]
[1764238736130,1e-08,3033.0,3032.9,8.3138674]
[1764238736322,1e-08,3033.0,3032.9,9.50005197]
[1764238736722,1e-08,3033.0,3032.9,9.75075197]
[1764238737522,1e-08,3033.0,3032.9,9.50005197]
[1764238738608,1e-08,3033.0,3032.9,9.75075197]
[1764238738807,1e-08,3033.0,3032.9,9.50005197]
[1764238739005,1e-08,3033.0,3032.9,9.75075197]
[1764238739227,1e-08,3033.0,3032.9,9.50005197]
[1764238739606,1e-08,3033.0,3032.9,9.75075197]
[1764238740430,1e-08,3033.0,3032.9,28.14056397]
[1764238740629,1e-08,3033.0,3032.9,26.72997697]
[1764238741130,0.0004,3033.3,3033.0,1.13109811]
[1764238741333,0.6743,3033.9,3033.2,28.88770908]
[1764238741532,0.6743,3033.9,3033.8,4.07099308]
[1764238741731,0.6743,3033.9,3033.8,4.27899308]
[1764238741925,1.1549,3033.9,3033.8,4.27899308]
[1764238742122,1.1549,3033.9,3033.8,4.95329308]
[1764238742633,0.487,3034.2,3033.9,1.13109811]
[1764238742812,0.487,3034.2,3034.1,2.93989497]
[1764238743006,0.487,3034.2,3034.1,6.96135935]
[1764238743239,0.9676,3034.2,3034.1,6.96135935]
[1764238743533,0.9676,3034.2,3034.1,4.02146438]
[1764238744208,0.9676,3034.2,3034.1,3.29587027]
[1764238745225,0.9676,3034.2,3033.9,7.31776919]
[1764238745433,0.487,3034.1,3033.9,7.31776919]
[1764238745631,0.4806,3034.0,3033.9,4.02168165]
[1764238746216,0.9676,3034.0,3033.9,4.02168165]
[1764238748643,0.487,3034.5,3034.0,0.405504]
[1764238748831,0.487,3034.5,3034.4,2.73797906]
[1764238749315,0.9676,3034.5,3034.4,6.03352348]
[1764238752738,0.9676,3034.5,3034.4,3.29554442]
[1764238753445,0.9676,3034.5,3034.3,6.59129897]
[1764238753642,0.9664,3034.4,3034.3,3.29564594]
[1764238755131,0.9656,3034.4,3034.3,3.29564594]
[1764238760567,0.9676,3034.4,3034.3,3.29564594]
[1764238762867,0.4751,3034.4,3034.3,3.29564594]
[1764238763072,0.9676,3034.4,3034.3,3.29564594]
[1764238766581,0.9676,3034.4,3034.1,6.59174054]
[1764238766876,0.4925,3034.3,3034.1,6.59174054]
[1764238767064,0.4739,3034.2,3034.0,3.29593432]
[1764238767249,0.4925,3034.3,3034.0,3.29593432]
[1764238767447,0.4739,3034.1,3034.0,3.29593432]
[1764238767960,0.9664,3034.1,3034.0,3.29593432]
[1764238768163,0.4739,3034.1,3034.0,6.03391338]
[1764238768547,0.9664,3034.1,3034.0,6.03391338]
[1764238772855,0.4945,3034.4,3034.0,12.62587118]
[1764238773075,0.4945,3034.4,3034.2,2.73797906]
[1764238773451,0.4945,3034.4,3034.0,12.62587118]
[1764238773671,0.4739,3034.1,3034.0,6.03391338]
[1764238774050,0.9664,3034.1,3034.0,6.03391338]
[1764238774855,0.4739,3034.1,3034.0,6.03391338]
[1764238775190,0.9664,3034.1,3034.0,3.29593432]
[1764238777282,0.9664,3034.1,3034.0,2.73797906]
[1764238777879,0.002,3034.4,3034.0,2.73797906]
[1764238778080,0.4945,3034.4,3034.0,2.73797906]
[1764238778283,0.4945,3034.4,3034.0,2.73897906]
[1764238778481,0.4945,3034.4,3034.2,2.73797906]
[1764238778985,0.9656,3034.3,3034.2,2.73797906]
[1764238779458,0.9656,3034.3,3034.2,6.03374071]
[1764238787374,0.002,3034.4,3034.2,9.32950236]
[1764238789802,0.002,3034.4,3034.3,0.2523]
[1764238790609,0.002,3034.4,3034.2,9.32950236]
[1764238790780,0.002,3034.4,3034.2,10.6381687]
[1764238791298,0.002,3034.4,3034.3,3.54795303]
[1764238793575,0.002,3034.4,3034.3,3.29565303]
[1764238795876,0.002,3034.4,3034.3,3.54795303]
[1764238798211,0.002,3034.4,3034.3,3.29565303]
[1764238800014,0.002,3034.4,3034.3,3.74905303]
[1764238801725,0.9423,3034.4,3034.3,3.29565303]
[1764238802317,0.9423,3034.4,3034.2,3.29575004]
[1764238802487,0.4534,3034.3,3034.2,3.29575004]
[1764238802811,0.9395,3034.3,3034.2,3.29575004]
[1764238804015,0.9395,3034.3,3034.1,0.001]
[1764238804185,0.4869,3034.2,3034.1,0.72659411]
[1764238804895,0.9403,3034.2,3034.1,0.72659411]
[1764238806410,0.9403,3034.2,3034.1,4.02246438]
[1764238806590,0.9403,3034.2,3034.1,3.29687027]
[1764238807117,0.9403,3034.2,3034.1,0.001]
[1764238807425,1.24768846,3034.2,3034.1,0.001]
[1764238807719,0.9403,3034.2,3034.1,0.001]
[1764238808233,0.9403,3034.2,3034.1,3.29687027]
[1764238808417,0.9403,3034.2,3034.1,0.001]
[1764238813988,0.4869,3034.2,3034.1,0.001]
[1764238814193,0.4774,3034.2,3034.1,0.001]
[1764238815216,0.9599,3034.2,3034.1,0.001]
[1764238817296,0.002,3034.4,3034.1,0.2541]
[1764238817497,0.002,3034.4,3034.1,0.001]
[1764238817498,0.4774,3034.2,3034.1,0.001]
[1764238818023,0.9599,3034.2,3034.1,0.001]
[1764238819229,0.4774,3034.2,3034.1,0.001]
[1764238819799,0.002,3034.4,3034.1,0.2541]
[1764238819995,0.002,3034.4,3034.2,6.5915233]
[1764238820510,0.4774,3034.3,3034.2,3.29576165]
[1764238822022,0.4774,3034.3,3034.1,0.001]
[1764238822349,0.002,3034.4,3034.2,0.2531]
[1764238822501,0.002,3034.4,3034.3,0.2531]
[1764238823524,0.002,3034.4,3034.3,0.5062]
[1764238824046,0.002,3034.4,3034.3,0.2531]
[1764238824216,0.002,3034.4,3034.3,3.54875303]
[1764238825304,0.002,3034.4,3034.3,4.52681255]
[1764238826301,0.0012,3034.4,3034.3,4.52681255]
[1764238826499,0.0012,3034.4,3034.3,4.77991255]
[1764238827130,0.0012,3034.4,3034.3,4.52681255]
[1764238828131,0.0012,3034.4,3034.3,5.18541655]
[1764238828433,0.0012,3034.4,3034.3,5.66791655]
[1764238829342,0.0012,3034.4,3034.3,6.39351066]
[1764238831304,0.0012,3034.4,3034.3,9.32859922]
[1764238831610,0.0012,3034.4,3034.3,9.07549922]
[1764238831823,0.0012,3034.4,3034.3,9.28349922]
[1764238834334,0.4786,3034.4,3034.3,9.03039922]
[1764238834531,0.0012,3034.4,3034.3,9.28349922]
[1764238836336,0.0012,3034.4,3034.3,9.07549922]
[1764238836631,0.0012,3034.4,3034.3,9.28349922]
[1764238836933,0.0012,3034.4,3034.3,9.53659922]
[1764238840544,0.0012,3034.4,3034.3,18.33508222]
[1764238841250,0.002,3034.8,3034.7,4.06618667]
[1764238841456,0.002,3034.8,3034.7,4.93390534]
[1764238841611,0.1915,3036.2,3035.5,2.93508856]
[1764238842018,0.1915,3036.2,3035.6,6.58848332]
[1764238842229,0.4593,3035.9,3035.8,2.93508856]
[1764238842710,0.9512,3035.9,3035.8,2.93508856]
[1764238843936,0.6508,3036.2,3035.8,6.22911319]
[1764238844247,0.4919,3035.9,3035.8,6.22911319]
[1764238844630,0.1915,3036.2,3035.8,12.81716245]
[1764238844944,0.6508,3036.2,3036.1,2.93508856]
[1764238845438,1.1427,3036.2,3036.1,2.93508856]
[1764238846146,1.1427,3036.2,3036.1,6.22878771]
[1764238846716,0.6834,3036.2,3036.1,6.22878771]
[1764238846918,1.1427,3036.2,3036.1,6.22878771]
[1764238847135,1.1427,3036.2,3036.1,7.21790902]
[1764238848540,1.1427,3036.2,3036.1,6.22878771]
[1764238849334,1.1427,3036.2,3036.1,3.29369915]
[1764238850133,1.1419,3036.2,3036.1,3.29369915]
[1764238850657,1.1439,3036.2,3036.0,6.58761118]
[1764238850880,1.1439,3036.2,3036.0,4.01939765]
[1764238850881,0.9512,3036.1,3036.0,4.01939765]
[1764238854770,0.9512,3036.1,3036.0,3.29380354]
[1764238855343,0.9512,3036.1,3035.9,6.58782651]
[1764238855544,0.9512,3036.0,3035.9,3.29391038]
[1764238857178,0.002,3036.2,3036.0,0.72559411]
[1764238857473,0.002,3036.2,3036.1,4.67869726]
[1764238857976,0.002,3036.2,3036.1,5.39189726]
[1764238859172,0.002,3036.2,3036.1,5.13799726]
[1764238859371,0.002,3036.2,3036.1,6.61526543]
[1764238860173,0.002,3036.2,3036.1,6.36136543]
[1764238862777,0.002,3036.2,3036.1,5.70196143]
[1764238862958,0.002,3036.2,3036.1,4.68659326]
[1764238862959,0.9532,3036.2,3036.1,4.68659326]
[1764238863159,0.9532,3036.2,3036.1,4.47859326]
[1764238863357,0.9532,3036.2,3036.0,3.29380214]
[1764238863568,0.4919,3036.1,3036.0,0.72559411]
[1764238863753,0.9512,3036.1,3036.0,0.72559411]
[1764238865370,0.9512,3036.1,3035.9,0.72559411]
[1764238865569,0.002,3036.2,3036.0,3.29380764]
[1764238866075,0.9512,3036.1,3036.0,3.29380764]
[1764238867470,0.9512,3036.1,3035.7,7.31386039]
[1764238867674,0.4593,3036.0,3035.7,7.31386039]
[1764238867846,0.4919,3035.8,3035.7,4.01972725]
[1764238868474,0.9512,3035.8,3035.4,0.72559411]
[1764238868771,0.4919,3035.5,3035.4,0.72559411]
[1764238868975,0.4919,3035.5,3035.3,2.93508856]
[1764238869145,0.9512,3035.4,3035.2,6.58926228]
[1764238869465,0.4919,3035.3,3035.2,4.02018059]
[1764238869657,0.9776,3035.3,3035.2,4.02018059]